[Event "7th Ali Ipek Memorial 2019"]
[Site "Ankara"]
[Date "2019.03.10"]
[Round "6.4"]
[White "Buker, Muhittin"]
[Black "Hokka, Fatih"]
[Result "1/2-1/2"]
[ECO "D12"]
[WhiteElo "2009"]
[BlackElo "1573"]
[Annotator "NA"]
[PlyCount "110"]
[EventDate "2019.03.06"]
[EventType "swiss"]
[EventCountry "TUR"]
[SourceTitle "playchess.com"]
[Source "ChessBase"]
[SourceQuality "1"]
[TimeControl "5400+30"]

1. d4 d5 {[%emt 0:00:30]} 2. Nf3 {[%emt 0:01:00]} Nf6 {[%emt 0:00:30]} 3. c4 {[%emt 0:02:30]} c6 {[%emt 0:00:30]} 4. Nc3 {[%emt 0:00:00]} Bf5 {[%emt 0:02:30]} 5. cxd5 {[%emt 0:02:00]} Nxd5 {[%emt 0:01:30]} 6. e3 {[%emt 0:02:30]} e6 {[%emt 0:01:30]} 7. Be2 {[%emt 0:00:30]} Be7 {[%emt 0:03:30]} 8. O-O {[%emt 0:00:30]} O-O {[%emt 0:00:30]} 9. Nd2 {[%emt 0:00:30]} Nxc3 {[%emt 0:08:30]} 10. bxc3 {[%emt 0:00:30]} c5 {[%emt 0:06:30]} 11. Ba3 {[%emt 0:05:30]} cxd4 {[%emt 0:02:30]} 12. Bxe7 {[%emt 0:00:30]} Qxe7 {[%emt 0:00:30]} 13. cxd4 {[%emt 0:00:00]} Nd7 {[%emt 0:00:30]} 14. Qb3 {[%emt 0:01:00]} Nb6 {[%emt 0:06:30]} 15. Rfc1 {[%emt 0:00:00]} Rac8 {[%emt 0:01:30]} 16. a4 {[%emt 0:01:00]} Rxc1+ {[%emt 0:03:30]} 17. Rxc1 {[%emt 0:00:30]} Rc8 {[%emt 0:00:30]} 18. Rxc8+ {[%emt 0:00:30]} Nxc8 $14 {[%emt 0:01:30]} 19. e4 {[%emt 0:02:30]} Bg6 {[%emt 0:01:30]} 20. Qc3 {[%emt 0:02:30]} Nd6 {[%emt 0:09:30]} 21. Qc5 {[%emt 0:01:30]} b6 {[%emt 0:00:30]} 22. Qc6 {[%emt 0:00:00]} h5 {[%emt 0:03:30]} 23. Bd3 {[%emt 0:01:00]} Nb7 {[%emt 0:06:30]} 24. Nf3 {[%emt 0:03:30]} Na5 {[%emt 0:04:30]} 25. Qc8+ {[%emt 0:01:30]} Kh7 {[%emt 0:01:30]} 26. Qc3 {[%emt 0:08:30]} Qd8 {[%emt 0:08:30]} 27. Ne5 {[%emt 0:00:30]} f6 {[%emt 0:02:30]} 28. Nxg6 {[%emt 0:01:30]} Kxg6 {[%emt 0:00:00]} 29. d5 {[%emt 0:01:30]} exd5 {[%emt 0:03:47]} 30. exd5+ {[%emt 0:01:30]} Kf7 {[%emt 0:00:41]} 31. h4 {[%emt 0:08:30]} Qxd5 {[%emt 0:05:30]} 32. Qc7+ {[%emt 0:00:30]} Ke6 {[%emt 0:01:50]} 33. Bg6 {[%emt 0:03:30]} Qd1+ {[%emt 0:00:30]} 34. Kh2 {[%emt 0:00:30]} Qd6+ {[%emt 0:07:43]} 35. Qxd6+ {[%emt 0:00:00]} Kxd6 {[%emt 0:00:30]} 36. Bxh5 {[%emt 0:00:00]} g5 {[%emt 0:00:30]} 37. g3 {[%emt 0:00:30]} Ke5 {[%emt 0:00:30]} 38. Bg6 {[%emt 0:00:30]} gxh4 {[%emt 0:00:30]} 39. f4+ {[%emt 0:00:30]} Ke6 {[%emt 0:00:30]} 40. gxh4 {[%emt 0:00:30]} f5 {[%emt 0:00:30]} 41. h5 {[%emt 0:00:30]} Kf6 {[%emt 0:00:30]} 42. Kg3 {[%emt 0:04:30]} Nc4 {[%emt 0:01:11]} 43. Be8 {[%emt 0:00:30]} Kg7 {[%emt 0:00:44]} 44. Kf2 {[%emt 0:00:30]} Nd6 {[%emt 0:01:35]} 45. Bc6 {[%emt 0:00:30]} Kh6 {[%emt 0:00:25]} 46. Bf3 {[%emt 0:00:30]} Ne4+ {[%emt 0:02:34]} 47. Ke3 {[%emt 0:03:30]} Nf6 {[%emt 0:00:40]} 48. Kd4 {[%emt 0:04:30]} Ng4 {[%emt 0:00:37]} 49. Kd5 {[%emt 0:00:30]} Kxh5 {[%emt 0:00:52]} 50. Kc6 {[%emt 0:03:30]} Kh4 {[%emt 0:00:50]} 51. Kb7 {[%emt 0:00:30]} Ne3 {[%emt 0:00:05]} 52. Kxa7 {[%emt 0:02:30]} Nc4 {[%emt 0:00:12]} 53. Be2 {[%emt 0:03:30]} Nb2 {[%emt 0:00:30]} 54. Bb5 {[%emt 0:00:00]} Kg3 {[%emt 0:00:32]} 55. Kxb6 {[%emt 0:00:00]} Nxa4+ {[%emt 0:00:00]} 1/2-1/2

[Event "7th Ali Ipek Memorial 2019"]
[Site "Ankara"]
[Date "2019.03.10"]
[Round "6.5"]
[White "Sinay, Ahmet"]
[Black "Cevizci, Yusuf Baran"]
[Result "0-1"]
[ECO "B22"]
[WhiteElo "1497"]
[BlackElo "1691"]
[Annotator "NA"]
[PlyCount "80"]
[EventDate "2019.03.06"]
[EventType "swiss"]
[EventCountry "TUR"]
[SourceTitle "playchess.com"]
[Source "ChessBase"]
[SourceQuality "1"]
[TimeControl "5400+30"]

1. e4 {[%emt 0:00:30]} c5 {[%emt 0:00:30]} 2. c3 {[%emt 0:03:30]} d5 {[%emt 0:00:30]} 3. exd5 {[%emt 0:00:30]} Qxd5 {[%emt 0:00:30]} 4. d4 {[%emt 0:00:30]} Nc6 {[%emt 0:00:30]} 5. Nf3 {[%emt 0:00:00]} Bf5 {[%emt 0:00:00]} 6. Na3 {[%emt 0:02:00]} cxd4 {[%emt 0:00:00]} 7. Nb5 {[%emt 0:01:30]} O-O-O {[%emt 0:00:30]} 8. cxd4 {[%emt 0:07:30]} e5 {[%emt 0:00:30]} 9. Bd2 {[%emt 0:18:30]} exd4 {[%emt 0:01:30]} 10. Qc1 {[%emt 0:03:30]} Qe4+ {[%emt 0:09:30]} 11. Kd1 {[%emt 0:07:30]} a6 {[%emt 0:00:30]} 12. Na7+ {[%emt 0:02:30]} Kb8 {[%emt 0:00:30]} 13. Nxc6+ {[%emt 0:00:30]} bxc6 {[%emt 0:00:30]} 14. Bxa6 {[%emt 0:16:30]} Bg4 {[%emt 0:07:30]} 15. Re1 {[%emt 0:01:30]} Bxf3+ {[%emt 0:00:30]} 16. gxf3 {[%emt 0:00:00]} Qxf3+ {[%emt 0:00:00]} 17. Be2 {[%emt 0:00:00]} Qd5 {[%emt 0:03:00]} 18. Qc4 {[%emt 0:09:30]} d3 {[%emt 0:00:00]} 19. Bf4+ {[%emt 0:01:30]} Kb7 {[%emt 0:00:00]} 20. Qxd5 {[%emt 0:02:33]} dxe2+ {[%emt 0:00:30]} 21. Kxe2 {[%emt 0:04:43]} Rxd5 {[%emt 0:00:30]} 22. Kf3 {[%emt 0:00:30]} Nf6 {[%emt 0:00:30]} 23. Be5 {[%emt 0:00:00]} Bc5 {[%emt 0:00:00]} 24. Bxf6 {[%emt 0:00:04]} Rf5+ {[%emt 0:00:00]} 25. Kg4 {[%emt 0:00:30]} Rxf6 {[%emt 0:00:00]} 26. f4 {[%emt 0:00:27]} h5+ {[%emt 0:00:00]} 27. Kg5 {[%emt 0:01:15]} Rhh6 {[%emt 0:00:30]} 28. f5 {[%emt 0:00:32]} Rh8 {[%emt 0:00:00]} 29. Rad1 {[%emt 0:00:32]} Kc7 {[%emt 0:00:00]} 30. Rc1 {[%emt 0:01:51]} Bb4 {[%emt 0:00:30]} 31. Re2 {[%emt 0:00:00]} Rd8 {[%emt 0:00:00]} 32. Rf1 {[%emt 0:04:46]} Rd4 {[%emt 0:00:00]} 33. Rff2 {[%emt 0:02:32]} Rg4+ {[%emt 0:00:30]} 34. Kxh5 {[%emt 0:00:31]} Rg1 {[%emt 0:00:30]} 35. Rg2 {[%emt 0:00:59]} Rxf5+ {[%emt 0:01:30]} 36. Kg4 {[%emt 0:00:37]} Rgf1 {[%emt 0:00:00]} 37. Re4 {[%emt 0:02:00]} Bd6 {[%emt 0:00:00]} 38. Kh4 {[%emt 0:02:49]} g6 {[%emt 0:00:30]} 39. Kg4 {[%emt 0:01:05]} Rh5 {[%emt 0:00:30]} 40. h4 {[%emt 0:01:07]} f5+ {[%emt 0:00:00]} 0-1

[Event "7th Ali Ipek Memorial 2019"]
[Site "Ankara"]
[Date "2019.03.10"]
[Round "6.6"]
[White "Soku, Mustafa Attila"]
[Black "Subasi, Fidel"]
[Result "1/2-1/2"]
[ECO "A85"]
[WhiteElo "1497"]
[BlackElo "1692"]
[Annotator "NA"]
[PlyCount "141"]
[EventDate "2019.03.06"]
[EventType "swiss"]
[EventCountry "TUR"]
[SourceTitle "playchess.com"]
[Source "ChessBase"]
[SourceQuality "1"]
[TimeControl "5400+30"]

1. d4 {[%emt 0:00:30]} e6 {[%emt 0:00:30]} 2. c4 {[%emt 0:00:30]} f5 {[%emt 0:00:30]} 3. Nc3 {[%emt 0:00:30]} Nf6 {[%emt 0:00:00]} 4. Bg5 {[%emt 0:03:30]} Bb4 {[%emt 0:00:00]} 5. h4 {[%emt 0:00:30]} h6 {[%emt 0:08:30]} 6. Bf4 {[%emt 0:02:30]} Nc6 {[%emt 0:01:30]} 7. e3 {[%emt 0:00:30]} O-O {[%emt 0:00:30]} 8. Nge2 {[%emt 0:01:30]} d5 {[%emt 0:06:30]} 9. a3 {[%emt 0:00:30]} Bd6 {[%emt 0:01:30]} 10. c5 {[%emt 0:02:30]} Bxf4 {[%emt 0:02:30]} 11. Nxf4 {[%emt 0:00:30]} Ne7 {[%emt 0:01:30]} 12. Nd3 {[%emt 0:04:30]} Ne4 {[%emt 0:03:30]} 13. Ne2 {[%emt 0:03:30]} b6 {[%emt 0:02:30]} 14. f3 {[%emt 0:04:30]} Nf6 {[%emt 0:00:30]} 15. Nef4 {[%emt 0:00:30]} bxc5 {[%emt 0:02:30]} 16. Nxc5 {[%emt 0:01:30]} Qd6 {[%emt 0:00:30]} 17. Ncd3 {[%emt 0:08:30]} Ba6 {[%emt 0:01:30]} 18. Nc5 {[%emt 0:03:30]} Bxf1 {[%emt 0:02:30]} 19. Kxf1 {[%emt 0:03:30]} e5 {[%emt 0:00:30]} 20. dxe5 {[%emt 0:03:30]} Qxc5 {[%emt 0:05:30]} 21. exf6 {[%emt 0:00:00]} Rxf6 {[%emt 0:00:30]} 22. Qd4 {[%emt 0:01:00]} Qb5+ {[%emt 0:04:30]} 23. Kf2 {[%emt 0:02:30]} Rd8 {[%emt 0:05:30]} 24. b4 {[%emt 0:13:30]} Nc6 {[%emt 0:02:30]} 25. Qd3 {[%emt 0:02:30]} Qxd3 {[%emt 0:03:30]} 26. Nxd3 {[%emt 0:00:30]} d4 {[%emt 0:00:30]} 27. exd4 {[%emt 0:02:30]} Rxd4 {[%emt 0:00:30]} 28. Rad1 {[%emt 0:03:30]} Rfd6 {[%emt 0:00:00]} 29. Ke2 {[%emt 0:00:30]} Rc4 {[%emt 0:05:00]} 30. Rc1 {[%emt 0:09:30]} Re6+ {[%emt 0:01:30]} 31. Kf2 {[%emt 0:00:30]} Rd4 {[%emt 0:02:30]} 32. Rhd1 {[%emt 0:01:30]} Rxh4 {[%emt 0:00:30]} 33. Nc5 {[%emt 0:01:30]} Re7 {[%emt 0:06:30]} 34. Na6 {[%emt 0:01:02]} Nd4 {[%emt 0:00:30]} 35. Rxc7 {[%emt 0:00:45]} Re2+ {[%emt 0:06:30]} 36. Kg1 {[%emt 0:03:18]} Ne6 {[%emt 0:07:07]} 37. Re7 {[%emt 0:02:02]} Rc4 {[%emt 0:00:21]} 38. Rd8+ {[%emt 0:00:54]} Kh7 {[%emt 0:00:25]} 39. Nc5 {[%emt 0:04:35]} Rc1+ {[%emt 0:05:55]} 40. Kh2 {[%emt 0:00:07]} Nxd8 {[%emt 0:00:34]} 41. Rxe2 {[%emt 0:00:10]} Rc3 {[%emt 0:00:23]} 42. Rd2 {[%emt 0:00:47]} Nc6 {[%emt 0:00:51]} 43. Rd6 {[%emt 0:00:00]} Nb8 {[%emt 0:01:46]} 44. Rd8 {[%emt 0:00:35]} Nc6 {[%emt 0:00:15]} 45. Rd6 {[%emt 0:00:55]} Nb8 {[%emt 0:02:39]} 46. Na6 {[%emt 0:00:37]} Nc6 {[%emt 0:01:02]} 47. Nc5 {[%emt 0:00:35]} Nb8 {[%emt 0:00:35]} 48. a4 {[%emt 0:01:13]} a5 {[%emt 0:00:42]} 49. Rb6 {[%emt 0:00:41]} axb4 {[%emt 0:00:44]} 50. Rxb8 {[%emt 0:00:20]} Rxc5 {[%emt 0:00:00]} 51. Rxb4 {[%emt 0:00:07]} Rc2 {[%emt 0:00:58]} 52. Kh3 {[%emt 0:01:09]} Ra2 {[%emt 0:00:09]} 53. f4 {[%emt 0:00:58]} Kg6 {[%emt 0:00:22]} 54. Rb6+ {[%emt 0:00:26]} Kh7 {[%emt 0:02:08]} 55. Rb4 {[%emt 0:00:28]} h5 {[%emt 0:01:31]} 56. g3 {[%emt 0:00:58]} Kh6 {[%emt 0:01:03]} 57. Rb5 {[%emt 0:00:13]} g6 {[%emt 0:01:33]} 58. a5 {[%emt 0:00:05]} h4 {[%emt 0:00:38]} 59. gxh4 {[%emt 0:00:46]} Ra3+ {[%emt 0:00:28]} 60. Kg2 {[%emt 0:00:00]} Kh5 {[%emt 0:00:10]} 61. Kf2 {[%emt 0:00:31]} Kxh4 {[%emt 0:00:14]} 62. Rb6 {[%emt 0:00:41]} Kg4 {[%emt 0:01:03]} 63. Rxg6+ {[%emt 0:01:02]} Kxf4 {[%emt 0:00:30]} 64. a6 {[%emt 0:00:00]} Ra2+ {[%emt 0:00:08]} 65. Ke1 {[%emt 0:00:04]} Kf3 {[%emt 0:00:00]} 66. Rf6 {[%emt 0:00:24]} f4 {[%emt 0:00:17]} 67. Kd1 {[%emt 0:00:34]} Ke4 {[%emt 0:01:02]} 68. Re6+ {[%emt 0:00:34]} Kf5 {[%emt 0:00:36]} 69. Rb6 {[%emt 0:00:13]} f3 {[%emt 0:00:15]} 70. Ke1 {[%emt 0:00:09]} Ke5 {[%emt 0:02:10]} 71. Kf1 {[%emt 0:00:11]} 1/2-1/2

[Event "7th Ali Ipek Memorial 2019"]
[Site "Ankara"]
[Date "2019.03.10"]
[Round "6.8"]
[White "Karadag, Eflatun Cem"]
[Black "Bingologlu, Furkan"]
[Result "0-1"]
[ECO "A30"]
[WhiteElo "1879"]
[BlackElo "1578"]
[Annotator "NA"]
[PlyCount "68"]
[EventDate "2019.03.06"]
[EventType "swiss"]
[EventCountry "TUR"]
[SourceTitle "playchess.com"]
[Source "ChessBase"]
[SourceQuality "1"]
[TimeControl "5400+30"]

1. d4 {[%emt 0:00:30]} Nf6 {[%emt 0:00:30]} 2. Nf3 {[%emt 0:00:30]} e6 {[%emt 0:00:00]} 3. g3 {[%emt 0:00:00]} b6 {[%emt 0:01:00]} 4. Bg2 {[%emt 0:00:00]} Bb7 {[%emt 0:00:00]} 5. O-O {[%emt 0:01:30]} c5 {[%emt 0:01:00]} 6. c4 {[%emt 0:01:30]} cxd4 {[%emt 0:01:30] LiveBook: 496 Games} 7. Qxd4 {[%emt 0:03:30]} Bc5 {[%emt 0:03:30]} 8. Qc3 {[%emt 0:03:30]} Nc6 {[%emt 0:00:30]} 9. a3 {[%emt 0:00:30]} a5 {[%emt 0:00:30]} 10. Bf4 {[%emt 0:04:30]} O-O {[%emt 0:10:30]} 11. Ne5 {[%emt 0:05:30]} Rc8 {[%emt 0:06:30]} 12. Nd2 {[%emt 0:03:30]} Bd4 $11 {[%emt 0:09:30]} 13. Qb3 {[%emt 0:10:30]} d6 {[%emt 0:03:30]} 14. Nxc6 {[%emt 0:04:30]} Bxc6 {[%emt 0:01:30]} 15. Nf3 {[%emt 0:00:30]} Bc5 {[%emt 0:00:30]} 16. Rfd1 {[%emt 0:02:30]} a4 {[%emt 0:01:30]} 17. Qc2 {[%emt 0:01:30]} Qe7 {[%emt 0:09:30]} 18. Nd2 {[%emt 0:03:30]} Qb7 {[%emt 0:02:30]} 19. Bxc6 {[%emt 0:05:30]} Qxc6 {[%emt 0:00:30]} 20. h3 {[%emt 0:05:30]} h6 {[%emt 0:01:30]} 21. e4 {[%emt 0:04:30]} Nh5 {[%emt 0:02:30]} 22. Nf1 {[%emt 0:03:30]} Nxf4 {[%emt 0:05:30]} 23. gxf4 {[%emt 0:00:30]} f5 {[%emt 0:01:30]} 24. Ng3 {[%emt 0:06:30]} fxe4 {[%emt 0:05:30]} 25. Qxe4 {[%emt 0:00:30]} Qxe4 {[%emt 0:00:30]} 26. Nxe4 {[%emt 0:00:30]} Rc6 {[%emt 0:00:30]} 27. Kg2 {[%emt 0:00:30]} Rxf4 {[%emt 0:00:30]} 28. f3 {[%emt 0:01:30]} d5 {[%emt 0:01:30]} 29. cxd5 {[%emt 0:00:30]} exd5 {[%emt 0:00:30]} 30. Rxd5 {[%emt 0:00:30]} Rg6+ {[%emt 0:02:30]} 31. Ng3 {[%emt 0:08:07]} Rc4 {[%emt 0:01:30]} 32. Rad1 {[%emt 0:00:30]} Rc2+ {[%emt 0:00:30]} 33. R5d2 {[%emt 0:00:30]} Rxd2+ {[%emt 0:00:30]} 34. Rxd2 {[%emt 0:00:30]} Bd6 {[%emt 0:00:00]} 0-1

[Event "7th Ali Ipek Memorial 2019"]
[Site "Ankara"]
[Date "2019.03.10"]
[Round "6.9"]
[White "Mermer, Yunus"]
[Black "Severcan, Sedat Sabri"]
[Result "0-1"]
[ECO "E76"]
[WhiteElo "1479"]
[BlackElo "1927"]
[Annotator "NA"]
[PlyCount "84"]
[EventDate "2019.03.06"]
[EventType "swiss"]
[EventCountry "TUR"]
[SourceTitle "playchess.com"]
[Source "ChessBase"]
[SourceQuality "1"]
[TimeControl "5400+30"]

1. d4 {[%emt 0:03:30]} Nf6 {[%emt 0:00:30]} 2. c4 {[%emt 0:00:30]} g6 {[%emt 0:00:00]} 3. Nc3 {[%emt 0:00:00]} Bg7 {[%emt 0:01:00]} 4. e4 {[%emt 0:00:00]} d6 {[%emt 0:00:30]} 5. f4 {[%emt 0:00:00]} O-O {[%emt 0:01:30]} 6. Nf3 {[%emt 0:00:00]} c5 {[%emt 0:00:30]} 7. d5 {[%emt 0:00:00]} a6 {[%emt 0:02:30]} 8. a4 {[%emt 0:06:00]} b6 {[%emt 0:00:30]} 9. Bd3 {[%emt 0:00:30]} e6 {[%emt 0:00:30]} 10. O-O {[%emt 0:00:30]} exd5 {[%emt 0:00:30]} 11. exd5 {[%emt 0:00:30]} Ra7 {[%emt 0:00:30]} 12. Qc2 {[%emt 0:03:30]} Bg4 {[%emt 0:06:30]} 13. f5 {[%emt 0:06:30]} Bxf3 {[%emt 0:02:30]} 14. Rxf3 {[%emt 0:00:30]} Ng4 {[%emt 0:00:30]} 15. h3 {[%emt 0:12:30]} Bd4+ {[%emt 0:00:30]} 16. Kh1 {[%emt 0:00:00]} Ne5 {[%emt 0:03:30]} 17. Rf1 {[%emt 0:01:00]} Nxd3 {[%emt 0:00:30]} 18. Qxd3 $14 {[%emt 0:00:30]} Nd7 {[%emt 0:00:30]} 19. fxg6 {[%emt 0:10:30]} hxg6 {[%emt 0:04:30]} 20. Bf4 {[%emt 0:04:30]} Ne5 {[%emt 0:01:30]} 21. Bxe5 {[%emt 0:00:30]} Bxe5 {[%emt 0:00:30]} 22. Rae1 {[%emt 0:01:30]} Bg7 {[%emt 0:03:30]} 23. Re2 {[%emt 0:06:30]} Re7 {[%emt 0:04:30]} 24. Rfe1 {[%emt 0:03:30]} Rfe8 {[%emt 0:01:30]} 25. Rxe7 {[%emt 0:02:30]} Rxe7 {[%emt 0:00:30]} 26. Rxe7 {[%emt 0:07:30]} Qxe7 {[%emt 0:01:30]} 27. Qe4 {[%emt 0:00:30]} Be5 {[%emt 0:00:30]} 28. Ne2 {[%emt 0:12:48]} Qg5 {[%emt 0:03:30]} 29. Qd3 {[%emt 0:06:13]} Bxb2 {[%emt 0:02:30]} 30. Kg1 {[%emt 0:00:20]} Be5 {[%emt 0:04:30]} 31. Kf1 {[%emt 0:00:30]} Kf8 {[%emt 0:00:30]} 32. Kg1 {[%emt 0:00:30]} Ke8 {[%emt 0:00:30]} 33. Kf1 {[%emt 0:00:30]} Kd7 {[%emt 0:01:30]} 34. Kg1 {[%emt 0:01:57]} Kc7 {[%emt 0:00:30]} 35. Qf3 {[%emt 0:00:30]} f5 {[%emt 0:00:30]} 36. Kf1 {[%emt 0:00:30]} Qd2 {[%emt 0:00:30]} 37. g4 {[%emt 0:01:27]} Qg5 {[%emt 0:06:30]} 38. gxf5 {[%emt 0:01:56]} gxf5 {[%emt 0:01:30]} 39. Qf2 {[%emt 0:01:33]} f4 {[%emt 0:04:30]} 40. h4 {[%emt 0:01:12]} Qg4 {[%emt 0:01:30]} 41. Qe1 {[%emt 0:04:34]} f3 {[%emt 0:00:30]} 42. Ng1 {[%emt 0:01:34]} Qg2# {[%emt 0:00:30]} 0-1

[Event "7th Ali Ipek Memorial 2019"]
[Site "Ankara"]
[Date "2019.03.10"]
[Round "6.10"]
[White "Coban, Eren Cinar"]
[Black "Kir, Seyyit Ali"]
[Result "1-0"]
[ECO "C47"]
[WhiteElo "1693"]
[BlackElo "1599"]
[Annotator "NA"]
[PlyCount "37"]
[EventDate "2019.03.06"]
[EventType "swiss"]
[EventCountry "TUR"]
[SourceTitle "playchess.com"]
[Source "ChessBase"]
[SourceQuality "1"]
[TimeControl "5400+30"]

1. e4 {[%emt 0:00:30]} e5 {[%emt 0:02:30]} 2. Nf3 {[%emt 0:00:30]} Nc6 {[%emt 0:00:00]} 3. Nc3 {[%emt 0:00:00]} Nf6 {[%emt 0:00:00]} 4. Be2 {[%emt 0:00:00]} Bc5 {[%emt 0:02:30]} 5. Nxe5 {[%emt 0:00:00]} Nxe5 {[%emt 0:02:30]} 6. d4 {[%emt 0:00:00]} Bb4 {[%emt 0:05:30]} 7. dxe5 {[%emt 0:00:30]} Bxc3+ {[%emt 0:03:30]} 8. bxc3 {[%emt 0:00:30]} Nxe4 {[%emt 0:04:30]} 9. Qd3 {[%emt 0:07:30]} d5 {[%emt 0:03:30]} 10. exd6 {[%emt 0:12:30]} Nxd6 {[%emt 0:01:30]} 11. Ba3 {[%emt 0:01:30]} Qg5 {[%emt 0:15:30]} 12. Bxd6 {[%emt 0:01:30]} cxd6 {[%emt 0:02:30]} 13. Qxd6 {[%emt 0:03:30]} Be6 {[%emt 0:04:30]} 14. Rd1 {[%emt 0:04:30]} Rc8 {[%emt 0:10:30]} 15. O-O {[%emt 0:03:30]} Qc5 {[%emt 0:03:30]} 16. c4 {[%emt 0:16:30]} Qxd6 {[%emt 0:00:30]} 17. Rxd6 {[%emt 0:00:00]} Bxc4 {[%emt 0:04:30]} 18. Bxc4 {[%emt 0:01:00]} Rxc4 {[%emt 0:00:30]} 19. Re1+ {[%emt 0:00:00]} 1-0

[Event "7th Ali Ipek Memorial 2019"]
[Site "Ankara"]
[Date "2019.03.10"]
[Round "6.11"]
[White "Yuksel, Mahmut"]
[Black "Kizilkus, Tanju"]
[Result "1-0"]
[ECO "C96"]
[WhiteElo "1720"]
[BlackElo "1571"]
[Annotator "NA"]
[PlyCount "49"]
[EventDate "2019.03.06"]
[EventType "swiss"]
[EventCountry "TUR"]
[SourceTitle "playchess.com"]
[Source "ChessBase"]
[SourceQuality "1"]
[TimeControl "5400+30"]

1. e4 {[%emt 0:00:30]} e5 {[%emt 0:00:30]} 2. Nf3 {[%emt 0:00:30]} Nc6 {[%emt 0:00:00]} 3. Bb5 {[%emt 0:00:00]} a6 {[%emt 0:00:00]} 4. Ba4 {[%emt 0:00:00]} b5 {[%emt 0:00:30]} 5. Bb3 {[%emt 0:00:00]} Be7 {[%emt 0:00:30]} 6. c3 {[%emt 0:00:00]} Nf6 {[%emt 0:00:00]} 7. d3 {[%emt 0:00:30]} O-O {[%emt 0:00:00]} 8. O-O {[%emt 0:00:30]} d6 {[%emt 0:00:30]} 9. h3 {[%emt 0:00:30]} Na5 {[%emt 0:00:30]} 10. Bc2 {[%emt 0:00:00]} c5 {[%emt 0:00:00]} 11. Re1 {[%emt 0:01:00]} Qc7 {[%emt 0:00:00]} 12. Nbd2 {[%emt 0:02:30]} Be6 {[%emt 0:02:30]} 13. Nf1 {[%emt 0:00:30]} Rfd8 {[%emt 0:02:30]} 14. a4 {[%emt 0:01:30]} Bf8 {[%emt 0:00:30]} 15. Bg5 {[%emt 0:00:30]} Be7 {[%emt 0:00:30]} 16. Ne3 {[%emt 0:00:30]} g6 {[%emt 0:00:30]} 17. b4 {[%emt 0:00:30]} Nc6 {[%emt 0:01:30]} 18. Rc1 {[%emt 0:15:30]} cxb4 {[%emt 0:14:30]} 19. Bb3 {[%emt 0:02:30]} Bxb3 {[%emt 0:02:30]} 20. Qxb3 {[%emt 0:01:30]} Na5 {[%emt 0:09:30]} 21. Qb1 {[%emt 0:05:30]} Qb7 {[%emt 0:07:30]} 22. cxb4 {[%emt 0:08:30]} Nc6 {[%emt 0:00:00]} 23. Bxf6 {[%emt 0:00:30]} Bxf6 {[%emt 0:00:00]} 24. Nd5 {[%emt 0:00:30]} Bg7 {[%emt 0:00:30]} 25. Rxc6 {[%emt 0:00:30]} 1-0

[Event "7th Ali Ipek Memorial 2019"]
[Site "Ankara"]
[Date "2019.03.10"]
[Round "6.12"]
[White "Kayan, Yasar Efe"]
[Black "Kaynak, Deniz Can"]
[Result "1/2-1/2"]
[ECO "C26"]
[WhiteElo "1516"]
[BlackElo "1467"]
[Annotator "NA"]
[PlyCount "62"]
[EventDate "2019.03.06"]
[EventType "swiss"]
[EventCountry "TUR"]
[SourceTitle "playchess.com"]
[Source "ChessBase"]
[SourceQuality "1"]
[TimeControl "5400+30"]

1. e4 e5 2. Nc3 {[%emt 0:00:00]} Nf6 {[%emt 0:00:00]} 3. g3 {[%emt 0:00:30]} Nc6 {[%emt 0:01:30]} 4. Bg2 {[%emt 0:00:00]} Be7 {[%emt 0:02:30]} 5. d3 {[%emt 0:00:00]} d6 {[%emt 0:00:30]} 6. f4 {[%emt 0:00:30]} Bg4 {[%emt 0:12:30]} 7. Nge2 {[%emt 0:00:30]} Qd7 {[%emt 0:11:30]} 8. h3 {[%emt 0:02:30]} Bxe2 {[%emt 0:02:30]} 9. Nxe2 {[%emt 0:01:30]} h5 {[%emt 0:10:30]} 10. Be3 {[%emt 0:07:30]} h4 {[%emt 0:12:30]} 11. g4 {[%emt 0:00:30]} O-O-O {[%emt 0:09:30]} 12. c4 {[%emt 0:08:30]} Kb8 {[%emt 0:05:30]} 13. a3 {[%emt 0:06:30]} exf4 {[%emt 0:05:30]} 14. Nxf4 {[%emt 0:04:30]} Ne5 {[%emt 0:02:30]} 15. Qc2 {[%emt 0:02:30]} g5 {[%emt 0:07:25]} 16. Nd5 {[%emt 0:03:30]} Nxd5 {[%emt 0:00:28]} 17. exd5 {[%emt 0:00:30]} Rhe8 {[%emt 0:00:50]} 18. O-O-O {[%emt 0:01:30]} Bf6 {[%emt 0:01:45]} 19. Bxa7+ {[%emt 0:01:30]} Kxa7 {[%emt 0:02:56]} 20. Qf2+ {[%emt 0:00:30]} b6 {[%emt 0:01:04]} 21. Qxf6 {[%emt 0:00:30]} Qa4 {[%emt 0:03:49]} 22. Qxg5 {[%emt 0:05:30]} Nxc4 {[%emt 0:00:30]} 23. dxc4 {[%emt 0:00:30]} Qxc4+ {[%emt 0:00:30]} 24. Kb1 {[%emt 0:00:30]} Re2 {[%emt 0:00:00]} 25. Rc1 {[%emt 0:09:30]} Qb3 {[%emt 0:00:18]} 26. Rxc7+ {[%emt 0:02:30]} Ka6 {[%emt 0:03:01]} 27. Qf6 {[%emt 0:00:00]} Rde8 {[%emt 0:00:45]} 28. Bf3 {[%emt 0:10:00]} Rf2 {[%emt 0:02:57]} 29. Qc3 {[%emt 0:10:30]} Rxf3 {[%emt 0:00:57]} 30. Qxb3 {[%emt 0:00:30]} Rxb3 {[%emt 0:00:30]} 31. Rxf7 {[%emt 0:00:30]} Re2 {[%emt 0:00:00]} 1/2-1/2